[Event "*** SCC Grand Prix: Titled Tuesday Blitz"]
[Site "Chess.com"]
[Date "2020.08.11"]
[Round "2"]
[White "JesseKraai"]
[Black "GM_Levan_Pantsulaia"]
[Result "1-0"]
[WhiteElo "2545"]
[BlackElo "2793"]
[TimeControl "180+1"]
[EndTime "10:19:35 PDT"]
[Termination "JesseKraai won by checkmate"]

1. Nf3 {[%clk 0:03:00.9]} 1... Nf6 {[%clk 0:02:40.1]} 2. c4 {[%clk 0:03:00.3]}
2... c5 {[%clk 0:02:38.4]} 3. Nc3 {[%clk 0:03:00.3]} 3... e6 {[%clk 0:02:38.7]}
4. e3 {[%clk 0:03:00.1]} 4... b6 {[%clk 0:02:35.2]} 5. d4 {[%clk 0:02:59.7]}
5... g6 {[%clk 0:02:35.3]} 6. d5 {[%clk 0:02:51.1]} 6... exd5 {[%clk 0:02:34.2]}
7. cxd5 {[%clk 0:02:51.3]} 7... Bg7 {[%clk 0:02:34.5]} 8. e4 {[%clk 0:02:50.6]}
8... O-O {[%clk 0:02:34.8]} 9. Bd3 {[%clk 0:02:50.7]} 9... d6 {[%clk 0:02:33.7]}
10. O-O {[%clk 0:02:50.8]} 10... Bg4 {[%clk 0:02:32.9]} 11. Bf4 {[%clk
0:02:48.1]} 11... Nh5 {[%clk 0:02:30.7]} 12. Be3 {[%clk 0:02:44]} 12... Nd7
{[%clk 0:02:29.5]} 13. Be2 {[%clk 0:02:43.4]} 13... a6 {[%clk 0:02:25.4]} 14. h3
{[%clk 0:02:41.8]} 14... Bxf3 {[%clk 0:02:25.3]} 15. Bxf3 {[%clk 0:02:42.1]}
15... Nhf6 {[%clk 0:02:25.5]} 16. a4 {[%clk 0:02:40.4]} 16... Re8 {[%clk
0:02:25.7]} 17. Qc2 {[%clk 0:02:39.5]} 17... Qc7 {[%clk 0:02:19.9]} 18. Rfe1
{[%clk 0:02:33.5]} 18... Re7 {[%clk 0:01:54.9]} 19. Be2 {[%clk 0:02:31.8]} 19...
Qb7 {[%clk 0:01:54.6]} 20. Bf4 {[%clk 0:02:23.9]} 20... Ne8 {[%clk 0:01:53.9]}
21. Bf1 {[%clk 0:02:22.1]} 21... Ne5 {[%clk 0:01:53.3]} 22. Bg5 {[%clk 0:02:17]}
22... Rc7 {[%clk 0:01:51.1]} 23. f4 {[%clk 0:02:14.6]} 23... Nd7 {[%clk
0:01:51.7]} 24. Rad1 {[%clk 0:02:03.7]} 24... c4 {[%clk 0:01:48]} 25. e5 {[%clk
0:01:41.1]} 25... dxe5 {[%clk 0:01:48.9]} 26. d6 {[%clk 0:01:40.4]} 26... Rc5
{[%clk 0:01:47.9]} 27. Ne4 {[%clk 0:01:21.7]} 27... Rc6 {[%clk 0:01:08.6]} 28.
fxe5 {[%clk 0:01:10.5]} 28... Bxe5 {[%clk 0:00:59.4]} 29. Be7 {[%clk 0:00:54.6]}
29... b5 {[%clk 0:00:57.1]} 30. Kh1 {[%clk 0:00:47.5]} 30... Qb6 {[%clk
0:00:49.8]} 31. Qd2 {[%clk 0:00:36.5]} 31... Ng7 {[%clk 0:00:43.8]} 32. Qd5
{[%clk 0:00:23.9]} 32... Rac8 {[%clk 0:00:37]} 33. Ng5 {[%clk 0:00:20.7]} 33...
Qf2 {[%clk 0:00:32.9]} 34. Nf3 {[%clk 0:00:20.4]} 34... Bf6 {[%clk 0:00:25.3]}
35. axb5 {[%clk 0:00:20.5]} 35... axb5 {[%clk 0:00:24.7]} 36. Qxb5 {[%clk
0:00:20.1]} 36... Nf5 {[%clk 0:00:20.6]} 37. Rd2 {[%clk 0:00:18.7]} 37... Qb6
{[%clk 0:00:17.4]} 38. Qd5 {[%clk 0:00:19]} 38... c3 {[%clk 0:00:15.2]} 39. bxc3
{[%clk 0:00:18.2]} 39... Bxc3 {[%clk 0:00:15.8]} 40. Red1 {[%clk 0:00:18.5]}
40... Bxd2 {[%clk 0:00:15.5]} 41. Rxd2 {[%clk 0:00:18.9]} 41... Rc1 {[%clk
0:00:15]} 42. Rd1 {[%clk 0:00:19.3]} 42... Rxd1 {[%clk 0:00:14.6]} 43. Qxd1
{[%clk 0:00:19.5]} 43... Nxe7 {[%clk 0:00:13]} 44. dxe7 {[%clk 0:00:19.1]} 44...
Qe6 {[%clk 0:00:13.7]} 45. Bb5 {[%clk 0:00:15.2]} 45... Nf6 {[%clk 0:00:13.8]}
46. Qd8+ {[%clk 0:00:11.6]} 46... Kg7 {[%clk 0:00:14.2]} 47. Nd4 {[%clk
0:00:07.6]} 47... Qe1+ {[%clk 0:00:12.7]} 48. Kh2 {[%clk 0:00:08]} 48... Qe5+
{[%clk 0:00:13.1]} 49. Kg1 {[%clk 0:00:07]} 49... Rc1+ {[%clk 0:00:13]} 50. Bf1
{[%clk 0:00:07.2]} 50... Re1 {[%clk 0:00:11.9]} 51. Qf8# {[%clk 0:00:06.2]} 1-0

[Event "*** SCC Grand Prix: Titled Tuesday Blitz"]
[Site "Chess.com"]
[Date "2020.08.11"]
[Round "2"]
[White "MVM2008"]
[Black "Caterpiller35"]
[Result "1-0"]
[WhiteElo "2216"]
[BlackElo "2409"]
[TimeControl "180+1"]
[EndTime "10:19:35 PDT"]
[Termination "MVM2008 won by resignation"]

1. e4 {[%clk 0:03:00.9]} 1... c5 {[%clk 0:02:59.5]} 2. Nf3 {[%clk 0:03:00.9]}
2... Nc6 {[%clk 0:02:59.4]} 3. Bb5 {[%clk 0:02:59.5]} 3... g6 {[%clk 0:02:58.6]}
4. c3 {[%clk 0:02:57]} 4... Nf6 {[%clk 0:02:55.8]} 5. d3 {[%clk 0:02:54.2]} 5...
Bg7 {[%clk 0:02:55.2]} 6. Be3 {[%clk 0:02:52.1]} 6... d6 {[%clk 0:02:52.5]} 7.
h3 {[%clk 0:02:45.8]} 7... O-O {[%clk 0:02:52.1]} 8. Nbd2 {[%clk 0:02:30.3]}
8... Bd7 {[%clk 0:02:50.6]} 9. Ba4 {[%clk 0:02:26]} 9... Ne5 {[%clk 0:02:48]}
10. Bxd7 {[%clk 0:02:03.1]} 10... Nxf3+ {[%clk 0:02:35.6]} 11. Qxf3 {[%clk
0:01:44.2]} 11... Nxd7 {[%clk 0:02:36.5]} 12. O-O {[%clk 0:01:38.7]} 12... b5
{[%clk 0:02:35.7]} 13. Qe2 {[%clk 0:01:25]} 13... b4 {[%clk 0:02:30.5]} 14. Rac1
{[%clk 0:01:22.4]} 14... a5 {[%clk 0:02:29.9]} 15. f4 {[%clk 0:01:15]} 15...
bxc3 {[%clk 0:02:24]} 16. bxc3 {[%clk 0:01:14.7]} 16... Rb8 {[%clk 0:02:23.8]}
17. Nc4 {[%clk 0:01:11.5]} 17... Qc7 {[%clk 0:02:13.8]} 18. d4 {[%clk
0:01:01.3]} 18... Rfc8 {[%clk 0:02:07.6]} 19. d5 {[%clk 0:00:49.4]} 19... Rb7
{[%clk 0:02:00.5]} 20. Qf3 {[%clk 0:00:31.8]} 20... f6 {[%clk 0:01:54.7]} 21.
Rce1 {[%clk 0:00:22.3]} 21... a4 {[%clk 0:01:42.9]} 22. e5 {[%clk 0:00:21.8]}
22... dxe5 {[%clk 0:01:41.7]} 23. d6 {[%clk 0:00:18.9]} 23... Qc6 {[%clk
0:01:25.6]} 24. Qxc6 {[%clk 0:00:18.7]} 24... Rxc6 {[%clk 0:01:24.6]} 25. Na5
{[%clk 0:00:19.3]} 25... Rbb6 {[%clk 0:01:02.3]} 26. Nxc6 {[%clk 0:00:19.4]}
26... Rxc6 {[%clk 0:01:03.2]} 27. dxe7 {[%clk 0:00:19.7]} 27... Kf7 {[%clk
0:01:02.9]} 28. fxe5 {[%clk 0:00:20]} 28... Nxe5 {[%clk 0:01:02.4]} 29. Bf4
{[%clk 0:00:19.6]} 29... Kxe7 {[%clk 0:01:00.6]} 30. Rb1 {[%clk 0:00:17.9]}
30... Rc7 {[%clk 0:00:46.4]} 31. Rb8 {[%clk 0:00:15.1]} 31... Nd3 {[%clk
0:00:42.9]} 32. Bxc7 {[%clk 0:00:13.3]} 32... f5 {[%clk 0:00:43.1]} 33. Rd1
{[%clk 0:00:11.1]} 33... c4 {[%clk 0:00:39.3]} 34. Rb7 {[%clk 0:00:09.5]} 34...
Ke6 {[%clk 0:00:35.3]} 35. Ba5 {[%clk 0:00:09.1]} 35... Bh6 {[%clk 0:00:32.6]}
36. Rxh7 {[%clk 0:00:08.1]} 36... Be3+ {[%clk 0:00:32.6]} 37. Kh2 {[%clk
0:00:07.8]} 37... Bf4+ {[%clk 0:00:32.6]} 38. g3 {[%clk 0:00:07.7]} 38... Be5
{[%clk 0:00:32.9]} 39. Rb7 {[%clk 0:00:04.8]} 39... f4 {[%clk 0:00:32.7]} 40.
gxf4 {[%clk 0:00:04.6]} 40... Bxf4+ {[%clk 0:00:32.7]} 41. Kg2 {[%clk
0:00:05.4]} 41... g5 {[%clk 0:00:32.4]} 42. Kf3 {[%clk 0:00:05.7]} 42... Kd5
{[%clk 0:00:32.5]} 43. Rd7+ {[%clk 0:00:05.6]} 43... Kc6 {[%clk 0:00:31.6]} 44.
R7xd3 {[%clk 0:00:06.5]} 44... cxd3 {[%clk 0:00:32.5]} 45. Rxd3 {[%clk
0:00:07.2]} 45... Kb5 {[%clk 0:00:33.4]} 46. Bb4 {[%clk 0:00:07.6]} 46... Kc4
{[%clk 0:00:33.4]} 47. Rd4+ {[%clk 0:00:07]} 47... Kb5 {[%clk 0:00:33.6]} 48. a3
{[%clk 0:00:07.3]} 48... Be5 {[%clk 0:00:31.1]} 49. Rd5+ {[%clk 0:00:07.3]}
49... Kc4 {[%clk 0:00:31.1]} 50. Rxe5 {[%clk 0:00:07.8]} 50... g4+ {[%clk
0:00:29.7]} 51. hxg4 {[%clk 0:00:06.8]} 1-0

[Event "*** SCC Grand Prix: Titled Tuesday Blitz"]
[Site "Chess.com"]
[Date "2020.08.11"]
[Round "2"]
[White "Steven_Rojas"]
[Black "czasnaszachy"]
[Result "1-0"]
[WhiteElo "2439"]
[BlackElo "2222"]
[TimeControl "180+1"]
[EndTime "10:19:37 PDT"]
[Termination "Steven_Rojas won on time"]

1. d4 {[%clk 0:03:00.9]} 1... Nf6 {[%clk 0:02:58.5]} 2. c4 {[%clk 0:02:57.9]}
2... e6 {[%clk 0:02:57.1]} 3. Nf3 {[%clk 0:02:54.6]} 3... b6 {[%clk 0:02:57.1]}
4. g3 {[%clk 0:02:53.4]} 4... Ba6 {[%clk 0:02:56.5]} 5. b3 {[%clk 0:02:48.1]}
5... Bb4+ {[%clk 0:02:55.5]} 6. Bd2 {[%clk 0:02:46.3]} 6... Be7 {[%clk
0:02:52.1]} 7. Bg2 {[%clk 0:02:45.4]} 7... Bb7 {[%clk 0:02:51.8]} 8. Nc3 {[%clk
0:02:39.6]} 8... O-O {[%clk 0:02:51.5]} 9. O-O {[%clk 0:02:38.7]} 9... d6 {[%clk
0:02:49.8]} 10. Qc2 {[%clk 0:02:30]} 10... c5 {[%clk 0:02:49.1]} 11. e4 {[%clk
0:02:09]} 11... cxd4 {[%clk 0:02:32.8]} 12. Nxd4 {[%clk 0:02:07.8]} 12... Qc7
{[%clk 0:01:47]} 13. Rad1 {[%clk 0:01:51.1]} 13... a6 {[%clk 0:01:42.1]} 14. h3
{[%clk 0:01:31.8]} 14... Nc6 {[%clk 0:01:34.4]} 15. Be3 {[%clk 0:01:17.6]} 15...
Rfd8 {[%clk 0:01:17.4]} 16. Qe2 {[%clk 0:00:59.3]} 16... Rac8 {[%clk 0:01:15]}
17. f4 {[%clk 0:00:46]} 17... Nd7 {[%clk 0:01:05.1]} 18. Nxc6 {[%clk 0:00:25.4]}
18... Bxc6 {[%clk 0:01:04.1]} 19. Rc1 {[%clk 0:00:25.7]} 19... Qb7 {[%clk
0:00:45.3]} 20. Rfd1 {[%clk 0:00:22]} 20... Nc5 {[%clk 0:00:43.9]} 21. Bxc5
{[%clk 0:00:14.4]} 21... dxc5 {[%clk 0:00:34.9]} 22. e5 {[%clk 0:00:12.3]} 22...
Rd7 {[%clk 0:00:23]} 23. Rxd7 {[%clk 0:00:10.8]} 23... Qxd7 {[%clk 0:00:21.9]}
24. Rd1 {[%clk 0:00:11.3]} 24... Qc7 {[%clk 0:00:22.1]} 25. Bxc6 {[%clk
0:00:08.6]} 25... Qxc6 {[%clk 0:00:22.1]} 26. Qe4 {[%clk 0:00:08.3]} 26... Qc7
{[%clk 0:00:20.9]} 27. Rd3 {[%clk 0:00:03.5]} 27... g6 {[%clk 0:00:20.8]} 28. h4
{[%clk 0:00:03.3]} 28... h5 {[%clk 0:00:20.2]} 29. a4 {[%clk 0:00:03]} 29... Rd8
{[%clk 0:00:19.7]} 30. Kf2 {[%clk 0:00:02.1]} 30... Rd7 {[%clk 0:00:18]} 31. Ke2
{[%clk 0:00:02.3]} 31... Qd8 {[%clk 0:00:18]} 32. Rxd7 {[%clk 0:00:02.8]} 32...
Qxd7 {[%clk 0:00:18.2]} 33. Qd3 {[%clk 0:00:03.2]} 33... Qc6 {[%clk 0:00:17.2]}
34. Ne4 {[%clk 0:00:02.7]} 34... Kg7 {[%clk 0:00:15.8]} 35. Ke3 {[%clk
0:00:02.9]} 35... Qb7 {[%clk 0:00:08.2]} 36. Qe2 {[%clk 0:00:02.6]} 36... Qd7
{[%clk 0:00:07.6]} 37. Kf3 {[%clk 0:00:01.5]} 37... Qd4 {[%clk 0:00:07.1]} 38.
Qe3 {[%clk 0:00:02.2]} 38... Qd1+ {[%clk 0:00:06.5]} 39. Kf2 {[%clk 0:00:02.3]}
39... Qh1 {[%clk 0:00:06]} 40. Qf3 {[%clk 0:00:01.9]} 40... Qh2+ {[%clk
0:00:06.1]} 41. Qg2 {[%clk 0:00:02.2]} 41... Qxg2+ {[%clk 0:00:05.9]} 42. Kxg2
{[%clk 0:00:03.1]} 42... Kf8 {[%clk 0:00:06.1]} 43. a5 {[%clk 0:00:03.3]} 43...
bxa5 {[%clk 0:00:04.7]} 44. Kf3 {[%clk 0:00:03.7]} 44... Ke8 {[%clk 0:00:05]}
45. Nc3 {[%clk 0:00:03.6]} 45... Kd7 {[%clk 0:00:04.9]} 46. Na4 {[%clk
0:00:04.1]} 46... Kc6 {[%clk 0:00:04.3]} 47. Nb2 {[%clk 0:00:04.3]} 47... Bd8
{[%clk 0:00:04.1]} 48. Nd1 {[%clk 0:00:03.4]} 48... Be7 {[%clk 0:00:02.6]} 49.
Nc3 {[%clk 0:00:03.8]} 49... Bd8 {[%clk 0:00:02.4]} 50. Ke3 {[%clk 0:00:04.4]}
50... Bb6 {[%clk 0:00:02.4]} 51. Ne4 {[%clk 0:00:04.5]} 51... Bd8 {[%clk
0:00:02.2]} 52. Nd6 {[%clk 0:00:04.4]} 1-0

[Event "*** SCC Grand Prix: Titled Tuesday Blitz"]
[Site "Chess.com"]
[Date "2020.08.11"]
[Round "2"]
[White "awesomevishesh"]
[Black "j2806"]
[Result "1-0"]
[WhiteElo "2375"]
[BlackElo "2072"]
[TimeControl "180+1"]
[EndTime "10:19:39 PDT"]
[Termination "awesomevishesh won by resignation"]

1. e4 {[%clk 0:03:00.9]} 1... c5 {[%clk 0:02:58.8]} 2. Nf3 {[%clk 0:03:00.3]}
2... d6 {[%clk 0:02:59.2]} 3. Bb5+ {[%clk 0:03:00.2]} 3... Bd7 {[%clk
0:02:58.6]} 4. Bxd7+ {[%clk 0:02:59.2]} 4... Qxd7 {[%clk 0:02:59.2]} 5. c4
{[%clk 0:02:59]} 5... Nc6 {[%clk 0:02:58.5]} 6. d4 {[%clk 0:02:58.7]} 6... cxd4
{[%clk 0:02:57.5]} 7. Nxd4 {[%clk 0:02:58.9]} 7... Nf6 {[%clk 0:02:57.2]} 8. Nc3
{[%clk 0:02:58.7]} 8... g6 {[%clk 0:02:57.1]} 9. b3 {[%clk 0:02:57.6]} 9... Bg7
{[%clk 0:02:57.6]} 10. Bb2 {[%clk 0:02:57.7]} 10... O-O {[%clk 0:02:57.6]} 11.
O-O {[%clk 0:02:57.4]} 11... Nxd4 {[%clk 0:02:57.4]} 12. Qxd4 {[%clk 0:02:56.2]}
12... a5 {[%clk 0:02:57.3]} 13. Nd5 {[%clk 0:02:43.9]} 13... Ra6 {[%clk
0:02:32.8]} 14. Rfe1 {[%clk 0:02:37.9]} 14... Re8 {[%clk 0:02:30.2]} 15. Rad1
{[%clk 0:02:25.5]} 15... Qc6 {[%clk 0:02:24.7]} 16. Qd2 {[%clk 0:02:11.6]} 16...
Qc5 {[%clk 0:02:12.2]} 17. Nxf6+ {[%clk 0:02:07.1]} 17... Bxf6 {[%clk
0:02:09.7]} 18. Bxf6 {[%clk 0:02:06.7]} 18... exf6 {[%clk 0:02:10.3]} 19. Qc3
{[%clk 0:01:38.2]} 19... Qe5 {[%clk 0:02:02]} 20. Qc1 {[%clk 0:01:34.9]} 20...
a4 {[%clk 0:01:58.7]} 21. Rd5 {[%clk 0:01:31.6]} 21... Qe6 {[%clk 0:01:48.3]}
22. h3 {[%clk 0:01:24.9]} 22... axb3 {[%clk 0:01:39.1]} 23. axb3 {[%clk
0:01:24.9]} 23... Rc6 {[%clk 0:01:39.6]} 24. Qd2 {[%clk 0:01:17.9]} 24... Kg7
{[%clk 0:01:21.7]} 25. Re3 {[%clk 0:01:11.6]} 25... Rd8 {[%clk 0:01:13.2]} 26.
f3 {[%clk 0:00:58.7]} 26... Qe7 {[%clk 0:01:06.6]} 27. Red3 {[%clk 0:00:57]}
27... b6 {[%clk 0:01:03.4]} 28. Qb4 {[%clk 0:00:51.9]} 28... Qc7 {[%clk
0:01:00.6]} 29. Qc3 {[%clk 0:00:37.5]} 29... Rc5 {[%clk 0:00:58.8]} 30. Qb4
{[%clk 0:00:29.3]} 30... Kg8 {[%clk 0:00:50.6]} 31. h4 {[%clk 0:00:26.5]} 31...
h5 {[%clk 0:00:49.6]} 32. Qa4 {[%clk 0:00:21.6]} 32... Kg7 {[%clk 0:00:49.4]}
33. Qa1 {[%clk 0:00:19]} 33... Rxd5 {[%clk 0:00:45.1]} 34. Rxd5 {[%clk
0:00:18.6]} 34... Qc6 {[%clk 0:00:42.6]} 35. Qd4 {[%clk 0:00:18]} 35... Rd7
{[%clk 0:00:41.7]} 36. Rb5 {[%clk 0:00:18.1]} 36... Rb7 {[%clk 0:00:41.4]} 37.
Kf2 {[%clk 0:00:17.7]} 37... Rb8 {[%clk 0:00:35.8]} 38. Ke3 {[%clk 0:00:15.9]}
38... Rb7 {[%clk 0:00:36.1]} 39. Qd5 {[%clk 0:00:13.3]} 39... Qxd5 {[%clk
0:00:34.2]} 40. Rxd5 {[%clk 0:00:11.9]} 40... Rd7 {[%clk 0:00:34]} 41. Rb5
{[%clk 0:00:11.8]} 41... Rb7 {[%clk 0:00:33.8]} 42. Kd4 {[%clk 0:00:12.3]} 42...
Kf8 {[%clk 0:00:34.4]} 43. Kd5 {[%clk 0:00:12.7]} 43... Ke7 {[%clk 0:00:32.9]}
44. Kc6 {[%clk 0:00:13]} 44... Ra7 {[%clk 0:00:32.2]} 45. Rxb6 {[%clk
0:00:12.9]} 45... Ra2 {[%clk 0:00:32.8]} 46. Rb7+ {[%clk 0:00:08]} 46... Ke6
{[%clk 0:00:32.4]} 47. b4 {[%clk 0:00:07.5]} 47... Rxg2 {[%clk 0:00:32]} 48. Rd7
{[%clk 0:00:06]} 48... Rd2 {[%clk 0:00:29.6]} 49. b5 {[%clk 0:00:04.8]} 49...
Rc2 {[%clk 0:00:29.8]} 50. Rxd6+ {[%clk 0:00:04.2]} 50... Ke7 {[%clk 0:00:30.7]}
51. c5 {[%clk 0:00:03.8]} 51... f5 {[%clk 0:00:30.1]} 52. exf5 {[%clk
0:00:03.4]} 52... gxf5 {[%clk 0:00:30.7]} 53. b6 {[%clk 0:00:04]} 53... Rb2
{[%clk 0:00:29.6]} 54. b7 {[%clk 0:00:04.5]} 54... Rb3 {[%clk 0:00:28.3]} 55.
Kc7 {[%clk 0:00:04.4]} 55... Rb2 {[%clk 0:00:28.3]} 56. b8=Q {[%clk 0:00:03.8]}
56... Rxb8 {[%clk 0:00:28.9]} 57. Kxb8 {[%clk 0:00:04.6]} 57... f6 {[%clk
0:00:29]} 58. Kc7 {[%clk 0:00:04.7]} 58... f4 {[%clk 0:00:28.3]} 59. c6 {[%clk
0:00:04.7]} 59... f5 {[%clk 0:00:29]} 60. Rh6 {[%clk 0:00:03.6]} 60... Kf7
{[%clk 0:00:29]} 61. Rxh5 {[%clk 0:00:03.8]} 61... Kg6 {[%clk 0:00:29.7]} 62.
Rg5+ {[%clk 0:00:04.3]} 62... Kh6 {[%clk 0:00:29.7]} 63. Kd6 {[%clk 0:00:04.5]}
63... Kh7 {[%clk 0:00:29.6]} 64. c7 {[%clk 0:00:04.9]} 64... Kh6 {[%clk
0:00:29.9]} 65. c8=Q {[%clk 0:00:05]} 1-0

[Event "*** SCC Grand Prix: Titled Tuesday Blitz"]
[Site "Chess.com"]
[Date "2020.08.11"]
[Round "2"]
[White "talman67"]
[Black "baki83"]
[Result "0-1"]
[WhiteElo "2487"]
[BlackElo "2727"]
[TimeControl "180+1"]
[EndTime "10:19:40 PDT"]
[Termination "baki83 won by resignation"]

1. e4 {[%clk 0:03:00.9]} 1... e5 {[%clk 0:02:59.5]} 2. Nf3 {[%clk 0:03:01]} 2...
Nc6 {[%clk 0:02:59.3]} 3. Bb5 {[%clk 0:03:01.5]} 3... a6 {[%clk 0:02:58.4]} 4.
Ba4 {[%clk 0:03:02]} 4... Nf6 {[%clk 0:02:58.1]} 5. O-O {[%clk 0:03:02.5]} 5...
Be7 {[%clk 0:02:57.6]} 6. Re1 {[%clk 0:03:02.9]} 6... b5 {[%clk 0:02:54.6]} 7.
Bb3 {[%clk 0:03:03.3]} 7... d6 {[%clk 0:02:54.6]} 8. c3 {[%clk 0:03:02.8]} 8...
O-O {[%clk 0:02:49.8]} 9. h3 {[%clk 0:03:03]} 9... Na5 {[%clk 0:02:44.6]} 10.
Bc2 {[%clk 0:03:03.1]} 10... c5 {[%clk 0:02:44.6]} 11. d4 {[%clk 0:03:03.5]}
11... Qc7 {[%clk 0:02:43.7]} 12. Nbd2 {[%clk 0:03:02]} 12... cxd4 {[%clk
0:02:31.3]} 13. cxd4 {[%clk 0:03:02.9]} 13... Bb7 {[%clk 0:02:28.8]} 14. d5
{[%clk 0:02:52.2]} 14... Rfc8 {[%clk 0:02:26.6]} 15. Bd3 {[%clk 0:02:51.4]}
15... Nd7 {[%clk 0:02:21.2]} 16. Nf1 {[%clk 0:02:46.9]} 16... Nc4 {[%clk
0:01:56]} 17. b3 {[%clk 0:02:40.6]} 17... Ncb6 {[%clk 0:01:55.4]} 18. Ba3 {[%clk
0:02:27.9]} 18... Qd8 {[%clk 0:01:42.5]} 19. Qd2 {[%clk 0:02:22.4]} 19... Nc5
{[%clk 0:01:37.1]} 20. Rac1 {[%clk 0:02:05]} 20... Nxd3 {[%clk 0:01:31]} 21.
Qxd3 {[%clk 0:02:05.9]} 21... Nd7 {[%clk 0:01:25.5]} 22. Ng3 {[%clk 0:01:58]}
22... g6 {[%clk 0:01:24.4]} 23. Qd2 {[%clk 0:01:54.5]} 23... a5 {[%clk
0:01:17.5]} 24. Bb2 {[%clk 0:01:36.8]} 24... b4 {[%clk 0:01:14.5]} 25. Qh6
{[%clk 0:01:34.2]} 25... Bf8 {[%clk 0:01:06.7]} 26. Qe3 {[%clk 0:01:31.9]} 26...
Qb6 {[%clk 0:01:01]} 27. Qd2 {[%clk 0:01:26.2]} 27... Ba6 {[%clk 0:00:50.4]} 28.
Rxc8 {[%clk 0:01:22.7]} 28... Rxc8 {[%clk 0:00:49.8]} 29. Rc1 {[%clk 0:01:23.6]}
29... Rxc1+ {[%clk 0:00:47.8]} 30. Qxc1 {[%clk 0:01:24.5]} 30... Qc5 {[%clk
0:00:43]} 31. Qxc5 {[%clk 0:00:54.1]} 31... Nxc5 {[%clk 0:00:42.1]} 32. Bc1
{[%clk 0:00:55]} 32... Bd3 {[%clk 0:00:39.5]} 33. Nd2 {[%clk 0:00:43.2]} 33...
Bh6 {[%clk 0:00:37]} 34. f3 {[%clk 0:00:34.7]} 34... Be3+ {[%clk 0:00:35.4]} 35.
Kh1 {[%clk 0:00:33.1]} 35... Bf4 {[%clk 0:00:30.1]} 36. Kh2 {[%clk 0:00:25.7]}
36... g5 {[%clk 0:00:20.6]} 37. Nc4 {[%clk 0:00:20.8]} 37... Bxc4 {[%clk
0:00:13.9]} 38. bxc4 {[%clk 0:00:19.2]} 38... Bxc1 {[%clk 0:00:13.7]} 39. Nf5
{[%clk 0:00:20.1]} 39... Bf4+ {[%clk 0:00:13.8]} 40. g3 {[%clk 0:00:19.9]} 40...
Bd2 {[%clk 0:00:12.3]} 41. Nxd6 {[%clk 0:00:20.8]} 41... a4 {[%clk 0:00:12.3]}
42. Nb5 {[%clk 0:00:20.1]} 42... b3 {[%clk 0:00:12.4]} 43. axb3 {[%clk
0:00:19.8]} 43... axb3 {[%clk 0:00:12.9]} 44. Na3 {[%clk 0:00:14.9]} 44... Bb4
{[%clk 0:00:12.5]} 45. Nb1 {[%clk 0:00:14.9]} 45... Kf8 {[%clk 0:00:12]} 46. Kg2
{[%clk 0:00:14.6]} 46... Na4 {[%clk 0:00:12.2]} 47. Kf2 {[%clk 0:00:15.5]} 47...
Nc3 {[%clk 0:00:12.4]} 48. Nd2 {[%clk 0:00:09.2]} 48... b2 {[%clk 0:00:12.6]}
49. Ke3 {[%clk 0:00:08.4]} 49... Nd1+ {[%clk 0:00:12.2]} 50. Kd3 {[%clk
0:00:07.6]} 50... Bxd2 {[%clk 0:00:12.1]} 51. Kc2 {[%clk 0:00:08.5]} 51... Bc3
{[%clk 0:00:11.5]} 52. Kb1 {[%clk 0:00:09.4]} 52... Ne3 {[%clk 0:00:11.2]} 53.
c5 {[%clk 0:00:08.5]} 53... Bd4 {[%clk 0:00:11.4]} 54. c6 {[%clk 0:00:08.6]}
54... Ke8 {[%clk 0:00:11.5]} 55. d6 {[%clk 0:00:08.5]} 55... Kd8 {[%clk
0:00:11.5]} 0-1

[Event "*** SCC Grand Prix: Titled Tuesday Blitz"]
[Site "Chess.com"]
[Date "2020.08.11"]
[Round "2"]
[White "Blagorod"]
[Black "googlegoom"]
[Result "0-1"]
[WhiteElo "2112"]
[BlackElo "2390"]
[TimeControl "180+1"]
[EndTime "10:19:40 PDT"]
[Termination "googlegoom won on time"]

1. e4 {[%clk 0:03:00.9]} 1... c5 {[%clk 0:02:58.4]} 2. Nc3 {[%clk 0:03:00.6]}
2... Nc6 {[%clk 0:02:40.4]} 3. g3 {[%clk 0:03:01.1]} 3... g6 {[%clk 0:02:40.3]}
4. Bg2 {[%clk 0:03:01.8]} 4... Bg7 {[%clk 0:02:40.9]} 5. d3 {[%clk 0:03:02.4]}
5... d6 {[%clk 0:02:40.7]} 6. f4 {[%clk 0:03:00.3]} 6... e5 {[%clk 0:02:38.1]}
7. Nh3 {[%clk 0:02:59.6]} 7... h6 {[%clk 0:02:36.4]} 8. O-O {[%clk 0:02:58.7]}
8... Nge7 {[%clk 0:02:36.3]} 9. f5 {[%clk 0:02:35.1]} 9... gxf5 {[%clk
0:02:33.5]} 10. exf5 {[%clk 0:02:34.6]} 10... Bxf5 {[%clk 0:02:29.4]} 11. Rxf5
{[%clk 0:02:12]} 11... Nxf5 {[%clk 0:02:29.1]} 12. Qg4 {[%clk 0:02:12.4]} 12...
Qd7 {[%clk 0:01:54.3]} 13. Be4 {[%clk 0:01:53.6]} 13... Ncd4 {[%clk 0:01:32.2]}
14. Nd5 {[%clk 0:01:44.6]} 14... O-O-O {[%clk 0:01:09.3]} 15. c3 {[%clk
0:01:35.4]} 15... h5 {[%clk 0:01:08.8]} 16. Qg5 {[%clk 0:01:11.8]} 16... Bh6
{[%clk 0:00:37.3]} 17. Qf6 {[%clk 0:01:06.9]} 17... Qe6 {[%clk 0:00:29]} 18.
Bxf5 {[%clk 0:00:51.2]} 18... Nxf5 {[%clk 0:00:22.9]} 19. Qxf5 {[%clk
0:00:50.8]} 19... Qxf5 {[%clk 0:00:21.4]} 20. Ne7+ {[%clk 0:00:51.2]} 20... Kd7
{[%clk 0:00:21.1]} 21. Nxf5 {[%clk 0:00:51.8]} 21... Bxc1 {[%clk 0:00:20.4]} 22.
Rxc1 {[%clk 0:00:51.1]} 22... Ke6 {[%clk 0:00:21.1]} 23. Rf1 {[%clk 0:00:46.7]}
23... f6 {[%clk 0:00:20.6]} 24. Ne3 {[%clk 0:00:43.1]} 24... d5 {[%clk
0:00:19.9]} 25. Nf2 {[%clk 0:00:30.4]} 25... b5 {[%clk 0:00:18.7]} 26. Nfd1
{[%clk 0:00:25.4]} 26... a5 {[%clk 0:00:17.9]} 27. Kg2 {[%clk 0:00:22.6]} 27...
b4 {[%clk 0:00:18]} 28. h3 {[%clk 0:00:20]} 28... Rb8 {[%clk 0:00:17.9]} 29.
cxb4 {[%clk 0:00:19]} 29... axb4 {[%clk 0:00:16.8]} 30. a3 {[%clk 0:00:16.4]}
30... bxa3 {[%clk 0:00:16.2]} 31. bxa3 {[%clk 0:00:16.7]} 31... Rb3 {[%clk
0:00:16.5]} 32. Nf2 {[%clk 0:00:14.2]} 32... Rxa3 {[%clk 0:00:15.4]} 33. g4
{[%clk 0:00:14.7]} 33... Ra2 {[%clk 0:00:13.2]} 34. Kf3 {[%clk 0:00:13.2]} 34...
hxg4+ {[%clk 0:00:11.7]} 35. Nexg4 {[%clk 0:00:12.5]} 35... f5 {[%clk
0:00:10.6]} 36. Ne3 {[%clk 0:00:11.5]} 36... e4+ {[%clk 0:00:10.6]} 37. dxe4
{[%clk 0:00:11.5]} 37... fxe4+ {[%clk 0:00:10.5]} 38. Kf4 {[%clk 0:00:08.7]}
38... Rf8+ {[%clk 0:00:10.5]} 39. Kg3 {[%clk 0:00:08.9]} 39... Rfxf2 {[%clk
0:00:09.9]} 40. Rxf2 {[%clk 0:00:08.5]} 40... Ra3 {[%clk 0:00:09.9]} 41. Kf4
{[%clk 0:00:07.2]} 41... d4 {[%clk 0:00:09.5]} 42. Nc4 {[%clk 0:00:06.5]} 42...
Rxh3 {[%clk 0:00:08.6]} 43. Kxe4 {[%clk 0:00:06.1]} 43... Rh4+ {[%clk
0:00:08.9]} 44. Kd3 {[%clk 0:00:06.2]} 44... Rh3+ {[%clk 0:00:09.3]} 45. Kc2
{[%clk 0:00:06.5]} 45... Rc3+ {[%clk 0:00:09.4]} 46. Kd2 {[%clk 0:00:05.6]}
46... Rxc4 {[%clk 0:00:09.9]} 47. Re2+ {[%clk 0:00:04]} 47... Kd5 {[%clk
0:00:10.1]} 48. Rh2 {[%clk 0:00:04.6]} 48... Rc3 {[%clk 0:00:10.7]} 49. Rh5+
{[%clk 0:00:04.3]} 49... Kc4 {[%clk 0:00:11.3]} 50. Rh8 {[%clk 0:00:04]} 50...
Ra3 {[%clk 0:00:11.5]} 51. Rb8 {[%clk 0:00:02.8]} 51... Ra2+ {[%clk 0:00:11.5]}
52. Kd1 {[%clk 0:00:02.7]} 52... Kc3 {[%clk 0:00:11.6]} 53. Rh8 {[%clk
0:00:01.9]} 53... c4 {[%clk 0:00:11.6]} 54. Rh3+ {[%clk 0:00:01.9]} 54... d3
{[%clk 0:00:12.1]} 0-1